Cogmind - Beta 13 @@@ ROGUE MODE // 2024.03.31 @ 22:54:58 Player: MasterLemons Result: Destroyed by 5J-CBB(M) with Barrage Gun Performance ------------- Evolutions (1) 500 Regions Visited (4) 800 Robots Destroyed (28) 140 Value Destroyed (705) 705 Prototype IDs (2) 40 Alien Tech Used (0) 0 Bonus (586) 586 TOTAL SCORE: 2771 Bonus ------- Met Imprinter 300 Was Imprinted 300 Friendly Fire -14 Cogmind --------- Core Integrity 0/400 Matter 244/300 Energy 39/100 System Corruption 6% Temperature Cool (0) Movement Core (350) Ox6 Location -7/Zion Parts ------- > --- POWER (1) -------- (None) > --- PROPULSION (3) --- (None) > --- UTILITY (3) ------ Large Storage Unit Component Analysis Suite > --- WEAPON (2) ------- (None) > --- INVENTORY (15) --- Light Ion Engine Light Ion Engine Improved Melee Analysis Suite Particle Charger Particle Charger Particle Charger Advanced ECM Suite Authchip [R/Combat] Authchip [Propulsion] Authchip [Propulsion] Phasing AFG Heavy Laser Beam Cannon Mini Grenade Launcher Peak State ------------ > --- POWER ------------ Ion Engine > --- PROPULSION ------- Light Treads Improved Treads Makeshift Leg > --- UTILITY ---------- Large Storage Unit Component Analysis Suite Tractor Beam > --- WEAPON ----------- Mini Grenade Launcher CR-A16's Pointy Stick > --- INVENTORY -------- Light Ion Engine Light Ion Engine Improved Melee Analysis Suite Particle Charger Particle Charger Particle Charger Advanced ECM Suite Authchip [R/Combat] Authchip [Propulsion] Authchip [Propulsion] Phasing AFG Lightning Gun Heavy Laser Beam Cannon Mini Grenade Launcher [Rating: 25] Favorites ----------- Power Ion Engine Engine Ion Engine Propulsion Light Treads Treads Light Treads Leg Makeshift Leg Utility Large Storage Unit Device Tractor Beam Storage Large Storage Unit Processor Improved Targeting Computer Protection Propulsion Shielding Weapon Mini Grenade Launcher Energy Gun Lightning Gun Ballistic Gun Light Assault Rifle Launcher Mini Grenade Launcher Piercing Weapon CR-A16's Pointy Stick Build | -11 -10 -9 -9 -7 ------- Run | Yrd Mat Mat Min Zio Slots Evolved 2 | . . 2 . . Power . | . . . . . Propulsion 1 | . . 1 . . Utility 1 | . . 1 . . Weapon . | . . . . . Parts Attached 33 | 7 8 6 5 7 Power 5 | 2 1 1 1 . Engine 5 | 2 1 1 1 . Core . | . . . . . Reactor . | . . . . . Propulsion 9 | 2 2 1 1 3 Treads 8 | 2 2 1 1 2 Leg 1 | . . . . 1 Wheel . | . . . . . Hover . | . . . . . Flight . | . . . . . Utility 12 | 1 3 4 2 2 Device 6 | . 1 2 1 2 Storage 2 | 1 1 . . . Processor 2 | . . 1 1 . Hackware . | . . . . . Protection 2 | . 1 1 . . Artifact . | . . . . . Weapon 7 | 2 2 . 1 2 Energy Gun 1 | . . . . 1 Energy Cannon . | . . . . . Ballistic Gun 2 | 2 . . . . Ballistic Cannon . | . . . . . Launcher 3 | . 2 . 1 . Special Weapon . | . . . . . Impact Weapon . | . . . . . Slashing Weapon . | . . . . . Piercing Weapon 1 | . . . . 1 Special Melee Weapon . | . . . . . Unidentified Prototypes 1 | . . 1 . . Parts Lost 13 | . . 1 5 7 Power 1 | . . . . 1 Propulsion 5 | . . . 3 2 Utility 3 | . . 1 1 1 Weapon 4 | . . . 1 3 Highest Loss Streak 7 | . . 1 5 7 To Critical Strikes 1 | . . . 1 . Average Slot Usage (%) 83 | . 92 99 80 77 Engine 11 | . 13 11 11 10 Treads 17 | . 24 33 19 12 Leg 2 | . . . . 4 Device 13 | . 3 11 14 16 Storage 11 | . 14 11 11 11 Protection 2 | . 7 10 . . Ballistic Gun 2 | . 11 . . . Launcher 19 | . 16 22 20 20 Naked Turns . | . . . . . Heaviest Build 32 | 13 29 32 31 31 Greatest Support 60 | 40 40 60 60 43 Greatest Overweight (x) 10 | . 1 . 10 1 Average Overweight (x) . | . . . . . Largest Inventory Capacity 15 | 8 15 15 15 15 Average Capacity 14 | 6 14 15 15 15 Most Carried 15 | 5 9 11 12 15 Average Carried 10 | 2 5 7 10 12 Final Capacity 15 | 8 15 15 15 15 Final Carried 14 | 1 8 11 8 14 Class Distribution -------------------- 100% | Mutant Dominant Class ---------------- Mutant | -10/Materials Mutant | -9/Materials Mutant | -9/Mines Mutant | -7/Zion Resources | -11 -10 -9 -9 -7 ----------- Run | Yrd Mat Mat Min Zio Matter Collected 906 | 201 345 33 133 194 Remotely 518 | . 158 33 133 194 Salvage Created 521 | . 273 143 105 . Parts 41 | . 29 8 4 . Haulers Intercepted . | . . . . . Recyclers Shooed . | . . . . . Parts Field Recycled . | . . . . . Retrieved Matter . | . . . . . Parts Self-Destructed 2 | . . . . 2 Prevented . | . . . . . Kills | -11 -10 -9 -9 -7 ------- Run | Yrd Mat Mat Min Zio Combat Hostiles Destroyed 20 | . 11 6 3 . Guns 8 | . 8 . . . AOE 12 | . 3 6 3 . Classes Destroyed 8 | . 4 2 2 . Worker 4 | . 2 2 . . Recycler 1 | . . . 1 . Operator 1 | . . 1 . . Watcher 2 | . 2 . . . Swarmer 6 | . 6 . . . Grunt 10 | . 5 3 2 . Brawler 1 | . . . 1 . Sentry 3 | . . 3 . . Best Kill Streak 5 | . 4 5 4 . Combat Bots Only 3 | . 3 2 3 . Max Kills in Single Turn 3 | . 2 3 2 . Gunslinging . | . . . . . Exploded 2 | . 1 2 2 . Melee . | . . . . . Uniques/NPCs Destroyed . | . . . . . Combat | -11 -10 -9 -9 -7 -------- Run | Yrd Mat Mat Min Zio Hostile Shots Fired 209 | . 58 38 48 65 Missed 65 | . 17 8 16 24 Damage Taken 2303 | . 431 469 596 807 Core 569 | . 154 102 106 207 Absorbed by Shields . | . . . . . Redirected to Shielding 88 | . 8 80 . . Regen/Repaired (Parts) 85 | . 47 38 . . Core Remaining (%) 69 | 100 38 . . . Volleys Fired 52 | . 33 13 3 3 Largest 2 | . 2 2 2 1 Hottest 60 | . 60 60 60 55 Shots Fired 100 | . 66 26 5 3 Gun 60 | . 58 . . 2 Cannon . | . . . . . Launcher 40 | . 8 26 5 1 Special . | . . . . . Kinetic 58 | . 58 . . . Thermal . | . . . . . Explosive 40 | . 8 26 5 1 Electromagnetic 2 | . . . . 2 Robot Hit Streak 13 | . 13 3 5 1 Robot Miss Streak 6 | . 6 . . 1 Penetration Max . | . . . . . Secondary Targets 1 | . 1 . . . Max Gunslinging Chain 1 | . 1 . . . Shots Hit Robots 37 | . 30 3 2 2 Core Hits 48 | . 21 21 6 . Critical Kills . | . . . . . Critical Parts Destroyed . | . . . . . Critical Strikes . | . . . . . Melee Attacks 2 | . . . . 2 Impact . | . . . . . Slashing . | . . . . . Piercing 2 | . . . . 2 Sneak Attacks . | . . . . . Combat Hostiles . | . . . . . Follow-up Attacks . | . . . . . Damage Inflicted 1660 | . 536 701 354 69 Guns 343 | . 322 . . 21 Cannons . | . . . . . Explosions 1263 | . 214 701 334 14 Melee 34 | . . . . 34 Ramming 20 | . . . 20 . Kinetic 322 | . 322 . . . Thermal . | . . . . . Explosive 1238 | . 214 676 334 14 Electromagnetic 46 | . . 25 . 21 Impact . | . . . . . Slashing . | . . . . . Piercing 34 | . . . . 34 Highest Corruption 6 | . . . 5 6 Average Corruption 4 | . . . 5 4 Corruption Purged . | . . . . . Corruption Blocked . | . . . . . Effects 5 | . . . 3 2 Matter Fused 1 | . . . . 1 Heat Flow Errors 1 | . . . 1 . Energy Discharges 1 | . . . 1 . Data Loss (minor) 2 | . . . 1 1 Overload Shots . | . . . . . Overflow Damage 38 | . 9 16 13 . Projectiles . | . . . . . Explosions 38 | . 9 16 13 . Melee . | . . . . . Knockbacks . | . . . . . Impact . | . . . . . Kinetic . | . . . . . Secondary . | . . . . . Self-Inflicted Damage 274 | . 57 71 146 . Shots 8 | . 2 2 4 . Rammed 7 | . . . 7 . Targets Rammed 7 | . . . 7 . Kicked . | . . . . . Crushed . | . . . . . Highest Temperature 132 | . 9 10 132 . Average Temperature 18 | . 9 5 44 . Received Heat Transfer 372 | . 57 153 162 . Siege Activations . | . . . . . Robots Corrupted . | . . . . . Combat Hostiles . | . . . . . Parts Fried . | . . . . . Impact Corruptions . | . . . . . Robots Melted . | . . . . . Combat Hostiles . | . . . . . Parts Melted . | . . . . . Heat Transferred . | . . . . . Parts Sabotaged . | . . . . . Parts Stolen . | . . . . . Parts Stripped . | . . . . . Power Chain Reactions . | . . . . . Alert | -11 -10 -9 -9 -7 ------- Run | Yrd Mat Mat Min Zio Peak Influence 379 | . 230 379 152 . Initial 85 | . . 53 85 . Average 123 | . 104 191 113 . Maximum Alert Level 1 | . 1 1 . . Low Security (%) 79 | 100 86 46 100 . Level 1 20 | . 13 53 . . Level 2 . | . . . . . Level 3 . | . . . . . Level 4 . | . . . . . Level 5 . | . . . . . High Security . | . . . . . Max Security . | . . . . . Squads Dispatched 4 | . 2 2 . . Investigation 1 | . 1 . . . Extermination . | . . . . . Reinforcement 3 | . 1 2 . . Assault . | . . . . . Garrison . | . . . . . Intercept . | . . . . . Searches Triggered . | . . . . . Construction Impeded 1 | . . 1 . . Haulers Reinforced . | . . . . . Active Scanning Responses . | . . . . . Cargo Convoy Interrupts . | . . . . . Stealth | -11 -10 -9 -9 -7 --------- Run | Yrd Mat Mat Min Zio Distress Signals 1 | . . 1 . . Communications Jammed . | . . . . . Distress Signals . | . . . . . Times Spotted 38 | . 18 9 3 8 Peak Tracking Total 8 | . 4 4 3 8 Tactical Retreats 1 | . 1 . . . Traps | -11 -10 -9 -9 -7 ------- Run | Yrd Mat Mat Min Zio Traps Triggered 1 | . 1 . . . Indirectly . | . . . . . Trap Hack Attempts . | . . . . . Triggered . | . . . . . Disarmed . | . . . . . Reprogrammed . | . . . . . Reused . | . . . . . Traps Extracted . | . . . . . Installed . | . . . . . Triggered . | . . . . . Machines | -11 -10 -9 -9 -7 ---------- Run | Yrd Mat Mat Min Zio Machines Disabled 5 | . 2 2 1 . Max in Single Turn 2 | . 2 2 1 . Machines Repaired . | . . . . . Machines Dismantled . | . . . . . Machines Sabotaged . | . . . . . Overloaded Fab Kills . | . . . . . Hacking | -11 -10 -9 -9 -7 --------- Run | Yrd Mat Mat Min Zio Machines Accessed 11 | . 9 2 . . Terminals 8 | . 7 1 . . Fabricators . | . . . . . Repair Stations 2 | . 1 1 . . Recycling Units 1 | . 1 . . . Scanalyzers . | . . . . . Garrison Access . | . . . . . Total Hacks 28 | . 24 4 . . Successful 13 | . 10 3 . . Failed 15 | . 14 1 . . Catastrophic 2 | . 2 . . . Database Lockouts . | . . . . . Manual 4 | . . . . 4 Terminals 21 | . 19 2 . . Fabricators . | . . . . . Repair Stations 5 | . 3 2 . . Recycling Units 2 | . 2 . . . Scanalyzers . | . . . . . Garrison Access . | . . . . . Terminal Hacks 8 | . 7 1 . . Record 1 | . 1 . . . Emergency Access Points 1 | . 1 . . . Locate Traps 1 | . 1 . . . Dispatch Records 1 | . 1 . . . Surveillance Status 1 | . 1 . . . Patrol Status 1 | . . 1 . . Recall Investigation 1 | . 1 . . . Zone Layout 1 | . 1 . . . Fabricator Hacks . | . . . . . Repair Station Hacks 4 | . 2 2 . . Scan Component 2 | . 1 1 . . Repair 2 | . 1 1 . . Recycling Unit Hacks 1 | . 1 . . . Retrieve Components 1 | . 1 . . . Scanalyzer . | . . . . . Garrison Access Hacks . | . . . . . Unauthorized Hacks . | . . . . . Terminals . | . . . . . Fabricators . | . . . . . Repair Stations . | . . . . . Recycling Units . | . . . . . Scanalyzers . | . . . . . Garrison Access . | . . . . . Data Cores Recovered . | . . . . . Used . | . . . . . Hacking Detections 6 | . 5 1 . . Full Trace Events 1 | . 1 . . . Feedback Events . | . . . . . Feedback Blocked . | . . . . . Robot Schematics Acquired 2 | . . . . 2 Robots Built . | . . . . . Authchips . | . . . . . Time . | . . . . . Total Robot Build Rating . | . . . . . Part Schematics Acquired 15 | . . . . 15 Parts Built . | . . . . . Authchips . | . . . . . Time . | . . . . . Total Part Build Rating . | . . . . . Parts Repaired 2 | . 1 1 . . Time 52 | . 26 26 . . Parts Recycled . | . . . . . Recycled Matter . | . . . . . Retrieved Matter . | . . . . . Retrieved Components 2 | . 2 . . . Parts Scanalyzed . | . . . . . Part Schematics Acquired . | . . . . . Parts Damaged . | . . . . . Bothacking | -11 -10 -9 -9 -7 ------------ Run | Yrd Mat Mat Min Zio Used RIF Installer . | . . . . . Robots Hacked . | . . . . . Non-combat . | . . . . . Combat . | . . . . . Robot Hacks Applied . | . . . . . Relay Couplers Released . | . . . . . Fabnet Peak Effective % . | . . . . . Robots Rewired . | . . . . . Allies Hacked . | . . . . . Hacks Repelled . | . . . . . Allies | -11 -10 -9 -9 -7 -------- Run | Yrd Mat Mat Min Zio Total Allies 4 | . . . . 4 Largest Group 4 | . . . . 4 Highest-Rated Group 157 | . . . . 157 Highest-Rated Ally 40 | . . . . 40 Total Orders . | . . . . . Ally Attacks . | . . . . . Total Damage . | . . . . . Kills . | . . . . . Allies Corrupted . | . . . . . Allies Melted . | . . . . . Intel | -11 -10 -9 -9 -7 ------- Run | Yrd Mat Mat Min Zio Robot Analysis Total . | . . . . . Derelict Logs Recovered 2 | . . . . 2 Drone Launches . | . . . . . Drone Recoveries . | . . . . . Exploration | -11 -10 -9 -9 -7 ------------- Run | Yrd Mat Mat Min Zio Turns Passed 4881 | 55 1144 464 297 2921 Spaces Moved 2293 | 43 554 232 133 1331 Core 32 | 24 . . 8 . Treads 1959 | 19 554 232 125 1029 Legs 302 | . . . . 302 Wheels . | . . . . . Hover . | . . . . . Flight . | . . . . . Fastest Speed 50 | 50 160 160 160 160 Average Speed 198 | 98 176 160 204 216 Slowest Speed 550 | 160 240 160 550 240 Overloaded Moves . | . . . . . Propulsion Burnouts . | . . . . . Robots Hopped . | . . . . . Cave-ins Triggered . | . . . . . Exploration Rate (%) 45 | 3 89 30 17 86 Regions Visited 4 Branch Regions 2 Pre-discovered Areas 1 | . . . 1 . Known Exits Taken . | . . . . . Unknown Exits Taken 4 | 1 1 1 1 . Scrap Searched 3 | . . . . 3 Spaces Dug . | . . . . . Terrain Destroyed 280 | . 64 168 47 1 Melee . | . . . . . Projectile . | . . . . . AOE 280 | . 64 168 47 1 Terrain Rammed . | . . . . . Walls Destroyed . | . . . . . Machines Disabled . | . . . . . Actions | -11 -10 -9 -9 -7 --------- Run | Yrd Mat Mat Min Zio Total 2525 | 54 665 298 150 1358 Wait 83 | . 43 40 . . Move 2289 | 42 553 231 132 1331 Hop . | . . . . . Pick Up 43 | 5 18 7 2 11 Fast Attach 4 | 2 . . . 2 Attach 19 | 4 4 4 4 3 Detach 1 | . 1 . . . Swap 10 | 1 4 2 1 2 Drop 15 | . 9 1 1 4 Fire 52 | . 33 13 3 3 Melee 2 | . . . . 2 Ram . | . . . . . Kick . | . . . . . Crush 7 | . . . 7 . Escape Stasis . | . . . . . Rewire . | . . . . . Trap . | . . . . . Miscellaneous . | . . . . . Route ------- -11/Scrapyard -10/Materials (discovered 5 exits: *Mat x3 / [*Min x2]) -9/Materials (discovered 2 exits: [*Mat] / [*Min]) -9/Mines -7/Zion History --------- Turn | Location | Event 19 | -11/Scrapyard | Discovered new exit (range 15) 56 | -11/Scrapyard | Entered Materials 301 | -10/Materials | Build established: Mutant 308 | -10/Materials | Discovered new exit (range 4) 428 | -10/Materials | Discovered new exit (range 13) 474 | -10/Materials | Core integrity fell below 50% 861 | -10/Materials | Discovered new exit (range 16) 1086 | -10/Materials | Discovered new exit (range 8) 1107 | -10/Materials | Discovered new exit (range 16) 1158 | -10/Materials | Repaired Ion Engine 1200 | -10/Materials | Entered another Materials area 1200 | -9/Materials | Evolved 2 slots: Propulsion x1, Utility x1 1371 | -9/Materials | Discovered new exit (range 14) 1487 | -9/Materials | Repaired Propulsion Shielding 1656 | -9/Materials | Discovered new exit (range 5) 1664 | -9/Materials | Entered Mines 1665 | -9/Mines | Learned location of Storage (-8) 1836 | -9/Mines | Core integrity fell below 50% 1858 | -9/Mines | Lost 5 parts (3n1u1w) 1931 | -9/Mines | Assembled infested the area 1933 | -9/Mines | A Derelict revealed a hidden shortcut to a safe place 1961 | -9/Mines | Entered Zion 2081 | -7/Zion | System corruption cleaned by Quarantine Array 2181 | -7/Zion | Learned Factory security intel 3041 | -7/Zion | Imprinted 3044 | -7/Zion | Declared Zion's savior 3375 | -7/Zion | Received a hallucinogenic algorithm 4194 | -7/Zion | Found Prototype Device 4231 | -7/Zion | Identified Phasing AFG 4474 | -7/Zion | Found CR-A16's Pointy Stick 4866 | -7/Zion | Attacked by Zionites 4875 | -7/Zion | Core integrity fell below 20% 4882 | -7/Zion | Destroyed by 5J-CBB(M) with Barrage Gun Last Messages --------------- 04832_ Subsystem restored. 04866_ PUBLIC SERVICE ANNOUNCEMENT: Zion is under attack! Defend our home! 04867_ E8-2Z8(z) emerges from the Twisted Machinery. 04868_ E8-2Z8(z) pulls a Mak. Sword out of the Twisted Machinery. HD-IIT(z) bursts out of the Twisted Machinery. HT-UMF(z) bursts out of the Twisted Machinery. 04871_ Ion Engine destroyed. 04871_ Tractor Beam destroyed. 04872_ HT-UMF(z) pulls a Mak. Hammer out of the Twisted Machinery. 04872_ Mni. Grenade Launcher destroyed. 04872_ System corrupted by crushing effect (+1). 04873_ Mak. Leg severed. 04873_ E8-2Z8(z) destroyed. 04877_ System corrupted: Component data lost. 04878_ CR-A16's Pointy Stick destroyed. 04878_ System corrupted by crushing effect (+2). 04879_ Lgt. Treads destroyed. 04881_ US-EBQ(M) IFF system glitched. 04881_ Lightning Gun destroyed. 04881_ Imp. Treads destroyed. Map ----- +----------------------------------------------------+ | ?????????????????????????????????????????????????? | | ?????????????????????????????????????????????????? | | ?????????????????????????????????????????????????? | | ?????????????????????????????????????????????????? | | ?????????????????????????????????????????????????? | | ?????????????????????????????????????????????????? | | ?????????????????????????????????????????????????? | | ?????????????????????????????????????????????????? | | ?????????????????????????????????????????????????? | | ?????????????????????????????????????##?????####?# | | ?????????????????????????????????#####"##???#""##" | | ?????????????????????????????????#"#""""#####""""" | | ?????????????????????????????????##"""""#"""""" "" | | ?????????????????????????????????#""" """""""" "" | | ?????????????????????????????????#""" " | | ????????????????????????????????##""" | | ???????????????????????????????##""" "" | | ???????????????????????????????#""" """" | | ??????????????????#####????????##"" ""#"" | | ???????????????????"#"##??????#""" ""#""" | | ???????????????????#"""###??####" "##""" | | ???????????????????" X"#"####"#"" """ "#"#"" " | | ???????????????????# """""""""""""""""""""#"" " | | ??????????????????## " """""""""""""""""""" " | | ??????????????????" M MMM " " | | ??????????????????" z@M/ " | | ??????????????????# """ z""""""""""" """""" | | ??????????????"""" """##"""""""" """""""" | | ??????????????####" """"####"" | | ?????????????????#####"####""" | | ?????????????????????###?#""" "" | | ?????????????????????????##"" "" | | ??????????????????????####"" "" """ | | ??????????????????????#""]" """"" | | ??????????????????????#" """## | | ??????????????????????#"" "" #"### | | ??????????????????????### """ """"# | | ????????????????????????# """"" """"" | | ????????????????????????### #""" "" | | ??????????????????????????## """ """ " | | ???????????????????????????####"" """ "" | | ????????????????????##########"" "" """ """"" | | ????????????????????# ## """ "" """ """## | | ???????????????????## """ "" "" "### | | ???????????????????# " """"" "" """# | | ???????????????????# [! """" | | ???????????????????# ### """ | | ???????????????????#####" """""""" "" | | ???????????????????????#"" ""#""""" " | | ???????????????????????##"" # ""#""""" " | +----------------------------------------------------+ Best States ------------- Heat Dissipation 28 Energy Generation 14 Energy Capacity 280 Matter Stores 300 Matter Capacity 300 Sight Range 16 Terrain Scan Density 10 Propulsion Shielding 33 Evasion (%) 50 Targeting Accuracy 6 Recoil Reduction 3 Particle Charging 15 Authchip Count 3 Item Schematics ----------------- Arc Projector | -7/Zion | Archive Fusion Compressor | -7/Zion | Archive Imp. Actuator Array | -7/Zion | Archive Adv. Terrain Scan Processor | -7/Zion | Archive Adv. Melee Analysis Suite | -7/Zion | Archive Adv. Assault Cannon | -7/Zion | Archive Adv. Cooling System | -7/Zion | Archive Imp. System Restoration Module | -7/Zion | Archive Gauss Cannon | -7/Zion | Archive Imp. Cooling System | -7/Zion | Archive Arm. Leg | -7/Zion | Archive Mak. System Shield | -7/Zion | Archive Hpw. Shock Rifle | -7/Zion | Archive Hvy. Riot Gun | -7/Zion | Archive Imp. Corruption Screen | -7/Zion | Archive Robot Schematics ------------------ S-27 Virus | -7/Zion | Archive Y-54 Guardian | -7/Zion | Archive Fabricated ------------ Nothing Alien Tech Used ----------------- None Achievements -------------- Robot Respite The One Challenges ------------ None Game ------ Seed MyomerMetafieldRipper Manual? 0 Play Time 00:33:38 Cumulative 4.5 hours Start 2024.03.31 @ 22:22:54 End 2024.03.31 @ 22:54:58 Sessions 1 Manual Loads 0 Difficulty Rogue Special Mode None Game No. 15 Rogue 12 Adventurer 3 Explorer 0 Win Type - Total 0 Types 0/0/0/0/0/0/0/0/0 Lore% 13 Gallery% 7 Achievement% 10 Wizard Run 0 Options --------- Layout 1 ASCII 0 Keyboard 0 Movement Mouse Keybinds 0 Fullscreen 1 Font 32/SmallcapsGlow Map View 77x35 Zoom Use 0% Tactical HUD 1 Map Filters NONE Filters NONE Steam 1 RUN: 44792bdb-2508-41b5-8216-5376851667d5